bitfinex/quotes_ETHUSD_20260111
["timestamp","ask_amount","ask_price","bid_price","bid_amount"]
[1768143874346,3.20153673,3123.5,3122.7,0.50473171]
[1768143875752,1.68499895,3123.9,3122.8,1.68884736]
[1768143875953,0.252,3123.7,3123.0,1.65682482]
[1768143876257,3.45333729,3123.7,3123.0,1.65682482]
[1768143877258,6.65467458,3123.7,3123.0,1.65682482]
[1768143877465,0.66546746,3123.6,3122.8,0.252]
[1768143878349,3.20153673,3123.5,3122.8,0.252]
[1768143879637,3.45341198,3123.7,3122.8,1.90882482]
[1768143880965,6.65482396,3123.7,3122.8,1.65682482]
[1768143881568,6.65482396,3123.7,3122.7,0.001]
[1768143881569,1.68499895,3123.4,3122.7,0.001]
[1768143881736,1.68499895,3123.4,3123.1,0.001]
[1768143881934,1.68499895,3123.4,3122.4,0.00080344]
[1768143882161,0.002,3123.4,3122.4,1.65762826]
[1768143883341,1.68699895,3123.4,3122.4,0.00080344]
[1768143883546,1.68499895,3123.2,3122.4,0.00080344]
[1768143884967,0.252,3123.2,3122.4,0.00080344]
[1768143885374,3.20194678,3123.1,3122.4,0.00080344]
[1768143885975,6.40397104,3123.1,3122.4,0.00080344]
[1768143887181,3.20193027,3123.2,3122.4,0.00080344]
[1768143887362,3.20178792,3123.3,3122.4,1.85541773]
[1768143888171,12.52455872,3123.3,3122.4,0.00080344]
[1768143888771,1.68499895,3123.2,3122.4,0.00080344]
[1768143888954,4.43598393,3123.0,3122.4,0.00080344]
[1768143889151,6.40450876,3122.8,3122.4,0.00080344]
[1768143889365,7.65705792,3122.8,3122.4,0.00080344]
[1768143889671,4.45480354,3122.8,3122.4,0.00080344]
[1768143889973,3.20196465,3123.1,3122.4,0.00080344]
[1768143890169,3.20174174,3123.3,3122.4,0.00080344]
[1768143890370,0.252,3123.2,3122.4,0.00080344]
[1768143890762,0.252,3123.2,3122.4,0.03283008]
[1768143891069,0.66555637,3123.1,3122.4,0.03283008]
[1768143891672,3.20204931,3123.0,3122.4,0.03283008]
[1768143893038,3.20204931,3123.0,3122.4,0.00080344]
[1768143894480,6.40409862,3123.0,3122.4,0.00080344]
[1768143894688,6.40409862,3123.0,3122.7,0.001]
[1768143894977,6.40409862,3123.0,3122.4,0.00080344]
[1768143894978,1.68499895,3122.8,3122.4,0.00080344]
[1768143895476,0.7069655,3122.9,3122.4,0.00080344]
[1768143896053,3.20204931,3123.0,3122.4,0.00080344]
[1768143896252,1.68499895,3122.9,3122.4,0.00080344]
[1768143896672,1.68499895,3122.7,3122.4,0.00080344]
[1768143898859,1.68499895,3122.5,3122.4,0.00080344]
[1768143899165,6.40459096,3122.8,3122.4,0.00080344]
[1768143899473,8.8985489,3122.8,3122.4,0.00080344]
[1768143900686,6.12098288,3122.5,3121.0,1.65682482]
[1768143900978,7.63902538,3122.1,3121.2,1.65682482]
[1768143901156,0.76390254,3122.0,3121.2,1.65682482]
[1768143901364,6.4060829,3122.1,3121.2,1.65682482]
[1768143901984,3.20304145,3122.1,3121.2,1.65682482]
[1768143902552,6.4060829,3122.1,3121.2,1.65682482]
[1768143902883,4.43598393,3121.9,3121.1,0.252]
[1768143903052,7.63922995,3121.9,3121.1,0.252]
[1768143903258,10.84247597,3121.9,3120.9,1.65682482]
[1768143903560,12.41552298,3121.9,3120.9,1.65682482]
[1768143906466,1.64683293,3121.8,3120.3,1.56484072]
[1768143906674,1.64683293,3121.8,3120.6,1.56484072]
[1768143906675,4.68798393,3121.7,3120.6,1.56484072]
[1768143907009,4.68798393,3121.7,3121.2,0.001]
[1768143907297,0.63348169,3121.6,3121.2,0.001]
[1768143907497,3.20358801,3121.5,3121.2,0.001]
[1768143907800,3.20358801,3121.5,3120.2,0.00082012]
[1768143907801,1.64683293,3121.4,3120.2,0.00082012]
[1768143907957,1.64683293,3121.4,3120.2,1.56566084]
[1768143907958,4.43598393,3121.4,3120.2,1.56566084]
[1768143908157,0.73704209,3121.3,3120.3,1.58260526]
[1768143908357,0.73704209,3121.3,3120.4,1.55055706]
[1768143908358,0.48504209,3121.3,3120.4,1.55055706]
[1768143908585,0.252,3121.4,3120.4,1.55055706]
[1768143909353,6.40758658,3121.3,3120.4,1.55055706]
[1768143910091,4.43598393,3121.0,3120.4,1.55055706]
[1768143910295,6.05156179,3121.0,3120.2,0.00082012]
[1768143910472,6.65671797,3121.0,3120.2,0.00082012]
[1768143911061,2.22073404,3121.0,3120.2,0.00082012]
[1768143911262,6.65958658,3121.3,3120.3,1.55055706]
[1768143911461,6.65958658,3121.3,3120.2,0.00082012]
[1768143911462,1.61557786,3121.2,3120.2,0.00082012]
[1768143912907,6.65958658,3121.3,3120.3,3.20481893]
[1768143912908,3.20379329,3121.3,3120.3,3.20481893]
[1768143913107,3.2037065,3121.4,3120.4,1.55055706]
[1768143913269,3.2037065,3121.4,3120.5,0.4755376]
[1768143913610,6.407413,3121.4,3120.6,1.55055706]
[1768143914774,6.407413,3121.4,3120.3,1.55055706]
[1768143914775,1.61557786,3121.3,3120.3,1.55055706]
[1768143914968,1.61557786,3121.3,3120.2,0.25282012]
[1768143914969,1.61557786,3121.2,3120.2,0.00082012]
[1768143915166,1.61557786,3121.1,3120.2,0.00082012]
[1768143915370,0.252,3121.0,3120.2,0.00082012]
[1768143915571,3.20406747,3121.1,3120.2,0.00082012]
[1768143915776,6.66013494,3121.1,3120.2,1.55137718]
[1768143915982,6.66013494,3121.1,3120.3,0.0320482]
[1768143916802,9.70350929,3121.1,3120.2,0.00082012]
[1768143917201,9.70350929,3121.1,3120.3,0.0320482]
[1768143917578,1.67979649,3121.1,3120.3,1.58260526]
[1768143917784,3.20310449,3122.0,3120.3,1.55055706]
[1768143917785,9.61045617,3121.6,3120.3,1.55055706]
[1768143917992,0.252,3121.5,3120.3,1.55055706]
[1768143918510,4.43598393,3121.4,3120.3,1.55055706]
[1768143918717,4.43598393,3121.4,3120.4,1.55055706]
[1768143918875,5.86582794,3121.4,3120.4,1.55055706]
[1768143919081,5.86582794,3121.4,3120.6,0.001]
[1768143919515,0.002,3121.3,3120.6,0.001]
[1768143919816,6.40958658,3121.3,3120.6,0.001]
[1768143926488,3.20579329,3121.3,3120.6,0.001]
[1768143926738,0.002,3121.3,3120.6,1.55155706]
[1768143926890,0.002,3121.6,3121.2,1.55055706]
[1768143927088,0.002,3121.6,3121.2,1.46054601]
[1768143928685,0.002,3121.6,3121.3,4.75435035]
[1768143928885,0.002,3121.6,3121.4,0.47543504]
[1768143929497,4.81801317,3122.7,3121.5,1.80255706]
[1768143929708,1.61557786,3122.6,3121.5,0.252]
[1768143930285,1.61557786,3122.6,3121.5,1.80255706]
[1768143930488,1.61557786,3122.6,3121.6,3.20348539]
[1768143930728,1.61557786,3122.5,3121.4,0.47543504]
[1768143930886,1.61557786,3122.5,3121.5,3.82349226]
[1768143931086,1.61557786,3122.5,3121.5,0.36791966]
[1768143931330,1.61557786,3122.5,3121.3,0.252]
[1768143931833,1.61557786,3122.5,3121.0,3.20409084]
[1768143932040,1.61557786,3122.5,3120.6,0.01061353]
[1768143932041,1.61557786,3122.5,3121.2,0.252]
[1768143932619,1.61557786,3122.3,3121.2,3.45588352]
[1768143932802,1.61557786,3122.1,3121.2,3.45588352]
[1768143933123,1.61557786,3122.1,3121.3,0.34558835]
[1768143934819,3.20478404,3122.3,3121.5,1.69042197]
[1768143937337,0.002,3122.3,3121.6,1.69042197]
[1768143938313,0.002,3122.3,3121.6,1.72245682]
[1768143939334,0.002,3122.3,3121.8,1.69042197]
[1768143939555,0.002,3122.3,3122.0,1.69042197]
[1768143939709,0.002,3122.3,3121.5,1.69042197]
[1768143940035,0.002,3122.3,3121.5,1.94242197]
[1768143940236,1.55914018,3122.3,3121.2,1.69042197]
[1768143941043,1.55914018,3122.3,3121.2,4.89430787]
[1768143941243,4.76000995,3122.2,3121.2,5.72934805]
[1768143941643,7.96287972,3122.2,3121.3,1.69042197]
[1768143941936,3.20286977,3122.2,3121.3,1.69042197]
[1768143942153,6.40573954,3122.2,3121.3,1.69042197]
[1768143942353,1.55714018,3122.1,3121.1,3.20398258]
[1768143942556,2.37882815,3122.1,3121.1,4.03914007]
[1768143942755,2.37882815,3122.1,3121.1,5.72956204]
[1768143942952,2.37882815,3122.1,3121.1,2.52557946]
[1768143943275,2.37882815,3122.1,3121.1,5.72953501]
[1768143943442,3.20307495,3122.0,3121.1,5.72953501]
[1768143943964,1.55714018,3121.9,3120.9,1.69142197]
[1768143944858,1.55714018,3121.9,3120.9,0.001]
[1768143945657,10.51291506,3122.0,3120.9,0.001]
[1768143945658,1.55714018,3121.7,3120.9,0.001]
[1768143945830,0.252,3121.6,3120.9,0.001]
[1768143946157,1.07357005,3121.6,3120.9,0.001]
[1768143946732,1.55714018,3121.5,3120.9,0.001]
[1768143947137,1.55714018,3121.5,3121.2,0.001]
[1768143947338,1.55714018,3121.5,3120.9,0.001]
[1768143947638,1.07357005,3121.6,3120.9,0.001]
[1768143947639,1.55714018,3121.3,3120.9,0.001]
[1768143947838,6.4073813,3121.4,3120.9,0.001]
[1768143947839,1.55714018,3121.1,3120.9,0.001]
[1768143948046,1.55714018,3121.1,3120.6,0.001]
[1768143948558,1.80914018,3121.1,3120.6,0.001]
[1768143949665,1.55714018,3120.9,3120.6,0.001]
[1768143950629,1.55514019,3120.9,3120.6,0.001]
[1768143950828,2.37667446,3120.9,3120.6,0.001]
[1768143951737,0.82153427,3120.9,3120.6,0.001]
[1768143952642,1.80914018,3121.1,3120.6,0.001]
[1768143952864,5.01317194,3121.1,3120.6,0.001]
[1768143953565,8.2172037,3121.1,3120.6,0.001]
[1768143954263,5.01317194,3121.1,3120.6,0.001]
[1768143956134,0.252,3121.0,3120.6,0.001]
[1768143957439,3.45613922,3121.0,3120.6,0.001]
[1768143957637,1.55714018,3121.3,3120.6,0.001]
[1768143957858,0.79645215,3121.2,3120.6,0.001]
[1768143958140,1.55714018,3121.3,3120.6,0.001]
[1768143958568,3.20389593,3121.2,3120.6,0.001]
[1768143958759,1.55714018,3121.3,3120.6,0.001]
[1768143958760,4.76098769,3121.3,3120.6,0.001]
[1768143958959,3.45572437,3121.4,3120.6,1.69142197]
[1768143959471,3.95701083,3121.4,3120.6,1.69142197]
[1768143959656,3.95701083,3121.4,3120.7,1.72246606]
[1768143961094,3.95701083,3121.4,3120.9,1.69142197]
[1768143961095,0.252,3121.4,3120.9,1.69142197]
[1768143961236,0.002,3121.1,3120.9,1.69142197]
[1768143963674,0.002,3121.1,3121.0,4.89452321]
[1768143963845,0.002,3121.4,3121.1,1.67891701]
[1768143966341,0.002,3121.4,3121.2,1.67891701]
[1768143966539,0.002,3121.4,3121.3,2.16720094]
[1768143971243,1.59149791,3122.0,3121.3,3.69207722]
[1768143972056,1.59149791,3122.0,3121.3,0.48828393]
[1768143973550,1.59149791,3122.0,3121.2,3.20384406]
[1768143973868,1.59149791,3122.0,3121.3,3.20378212]
[1768143974067,1.59149791,3122.0,3121.3,3.2037794]
[1768143974257,1.59149791,3122.0,3121.0,0.252]
[1768143974258,1.58949791,3121.9,3121.0,0.252]
[1768143974454,0.002,3121.1,3121.0,3.45603994]
[1768143974659,1.58949791,3121.9,3121.0,4.12216726]
[1768143974874,0.002,3121.4,3121.0,4.12216726]
[1768143975072,0.002,3121.4,3121.0,4.12222086]
[1768143975277,0.002,3121.4,3121.0,0.66612732]
[1768143976482,1.59149791,3121.4,3121.0,0.66612732]
[1768143976684,1.58949791,3121.2,3120.6,0.001]
[1768143977188,1.58949791,3121.1,3120.6,0.001]
[1768143978263,0.252,3121.3,3120.6,0.001]
[1768143978495,5.04530966,3121.3,3120.6,0.001]
[1768143979809,1.58949791,3121.2,3120.6,0.001]
[1768143980010,4.28091359,3121.3,3120.6,0.001]
[1768143980817,5.8704115,3121.3,3120.6,0.001]
[1768143981800,0.002,3121.4,3120.6,1.68374057]
[1768143982004,0.254,3121.4,3120.6,1.65169546]
[1768143982584,0.002,3121.4,3120.6,1.65169546]
[1768143983313,0.002,3121.4,3120.6,1.90369546]
[1768143983708,0.002,3121.4,3120.7,6.40881852]
[1768143983911,0.002,3121.4,3120.9,1.65069546]
[1768143985113,0.002,3121.4,3121.1,1.65069546]
[1768143986883,0.002,3121.4,3121.2,1.65069546]
[1768143988087,0.002,3121.4,3121.1,3.20399835]
[1768143988088,0.002,3121.4,3120.9,4.8558858]
[1768143988295,0.002,3121.4,3120.9,0.001]
[1768143988494,0.002,3121.4,3121.0,0.40365003]
[1768143989293,0.002,3121.4,3121.0,3.6077437]
[1768143989914,0.002,3121.4,3121.0,3.60773675]
[1768143990394,0.002,3121.4,3121.0,0.40365003]
[1768143991030,0.002,3121.4,3120.9,0.001]
[1768143991031,1.59149791,3121.4,3120.9,0.001]
[1768143991912,4.7932912,3121.3,3120.9,0.001]
[1768143992322,1.58949791,3121.3,3120.9,0.001]
[1768143993195,1.58949791,3121.3,3120.6,0.001]
[1768143993434,1.58949791,3121.2,3120.6,0.001]
[1768143994025,1.55258454,3121.0,3120.6,0.001]
[1768143994599,1.55258454,3121.1,3120.6,0.001]
[1768143995202,0.252,3121.3,3120.6,0.001]
[1768143995436,0.252,3121.3,3120.6,1.55599896]
[1768143995639,3.45581452,3121.3,3120.6,1.55599896]
[1768143995835,0.252,3121.3,3120.6,1.55599896]
[1768143996138,3.20577186,3121.4,3120.8,1.55499896]
[1768143996139,0.002,3121.4,3120.8,1.55499896]
[1768143996345,0.002,3121.4,3120.7,3.20440926]
[1768143996346,0.002,3121.4,3120.9,2.03093978]
[1768143996544,0.002,3121.4,3121.0,1.55499896]
[1768143999129,0.002,3121.4,3120.9,0.001]
[1768143999330,0.002,3121.1,3120.9,0.001]
[1768144003134,0.002,3121.4,3120.9,0.001]
[1768144003135,3.20303761,3122.1,3121.1,1.55499896]
[1768144003348,4.43886871,3121.2,3120.6,0.001]
[1768144003517,1.55258454,3121.5,3120.6,0.001]
[1768144003721,0.50167019,3121.3,3120.6,0.001]
[1768144003917,4.43886871,3121.4,3120.6,0.001]
[1768144004260,3.20368668,3121.5,3120.7,1.55499896]
[1768144004921,3.4555339,3121.6,3120.7,1.55499896]
[1768144005121,4.72057929,3121.6,3120.7,1.55499896]
[1768144006067,7.92411319,3121.6,3120.7,1.55499896]
[1768144007351,4.75596731,3121.7,3120.7,1.55499896]
[1768144007544,4.75596731,3121.7,3120.8,1.55499896]
[1768144007754,0.03204218,3121.6,3120.8,1.55499896]
[1768144008045,1.55258454,3121.4,3120.6,0.001]
[1768144008253,1.55258454,3121.4,3120.2,6.25630132]
[1768144008254,1.55258454,3120.9,3120.2,0.00082012]
[1768144008763,1.55258454,3120.8,3120.2,0.00082012]
[1768144008941,0.00080208,3120.0,3119.3,1.55499896]
[1768144009134,0.00080208,3120.0,3119.5,1.55499896]
[1768144009335,0.00080208,3120.0,3119.6,1.55499896]
[1768144010062,0.00080208,3120.0,3119.7,4.79238884]
[1768144010234,0.00080208,3120.0,3119.8,0.79979277]
[1768144010879,0.00080208,3120.0,3119.8,2.35479173]
[1768144012169,0.00080208,3120.0,3119.8,4.00509405]
[1768144012470,1.55258454,3120.5,3119.8,7.21042772]
[1768144012767,0.00082012,3120.6,3120.0,1.55499896]
[1768144013337,0.00082012,3120.6,3119.6,0.00080216]
[1768144013338,1.55258454,3120.0,3119.6,0.00080216]
[1768144013532,0.00082012,3120.6,3119.8,3.20531873]
[1768144013764,0.00082012,3120.6,3119.9,0.0320523]
[1768144014134,0.00082012,3120.6,3120.0,0.00961646]
[1768144016881,1.55340466,3120.6,3120.0,0.00961646]
[1768144017575,0.00082012,3120.6,3120.0,0.00961646]
[1768144017779,0.00082012,3120.6,3120.0,0.48659542]
[1768144018584,0.00082012,3120.6,3120.0,3.69168274]
[1768144018969,0.00082012,3120.6,3120.0,0.48659542]
[1768144019284,0.00082012,3120.6,3120.0,3.69172052]
[1768144019885,0.00082012,3120.6,3120.2,1.56461542]
[1768144020483,0.00082012,3120.6,3120.4,1.56461542]
[1768144020885,1.55458454,3121.1,3120.4,3.37490741]
[1768144021067,1.55458454,3121.1,3120.6,0.00961646]
[1768144021848,1.55258454,3121.3,3120.8,0.00961646]
[1768144022849,1.55258454,3121.3,3120.9,3.20420391]
[1768144023386,0.002,3121.4,3120.9,3.20420391]
[1768144023749,1.55458454,3121.4,3120.9,3.20420391]
[1768144024482,1.69881316,3121.3,3120.8,0.00961646]
[1768144026583,1.86889448,3121.3,3120.8,0.00961646]
[1768144026886,1.69881316,3121.3,3120.8,3.21389744]
[1768144027085,0.002,3121.4,3120.8,3.21389744]
[1768144027477,0.002,3121.4,3120.9,1.60505104]
[1768144028487,0.002,3121.4,3121.0,0.00961646]
[1768144030694,0.002,3121.4,3120.8,0.00961646]
[1768144030861,0.002,3121.4,3120.8,0.4881871]
[1768144031475,0.002,3121.4,3120.8,0.00961646]
[1768144032001,0.002,3121.4,3120.7,3.20435965]
[1768144032488,0.002,3121.4,3120.8,3.20428031]
[1768144033207,0.002,3121.4,3120.8,1.56211891]
[1768144033408,0.002,3121.4,3120.8,1.57173537]
[1768144033609,0.002,3121.4,3120.9,2.03973337]
[1768144034102,7.64408082,3121.9,3121.2,1.56211891]
[1768144034103,0.002,3121.9,3121.2,1.56211891]
[1768144034272,0.47776221,3122.0,3121.0,0.00961646]
[1768144034273,0.002,3122.3,3121.5,0.00961646]
[1768144034475,0.002,3122.3,3121.5,1.57173537]
[1768144035010,0.002,3122.3,3121.7,1.57173537]
[1768144035217,0.002,3122.3,3122.0,3.20307495]
[1768144035710,0.2531873,3122.7,3122.0,3.20307495]
[1768144035871,0.0011873,3122.7,3122.0,3.20307495]
[1768144036068,0.57360195,3122.7,3122.0,3.20307495]
[1768144036532,0.57360195,3122.7,3121.9,4.77486685]
[1768144036881,0.57360195,3122.7,3121.9,7.9780444]
[1768144037080,0.002,3122.0,3121.9,4.77486685]
[1768144037425,0.002,3122.3,3121.9,7.9780444]
[1768144037604,0.002,3122.3,3122.0,1.56211891]
[1768144038108,0.0011873,3122.7,3122.0,1.56211891]
[1768144038307,0.0011873,3122.7,3121.9,6.41592549]
[1768144038476,0.0011873,3122.7,3122.1,0.00961646]
[1768144039419,0.0011873,3122.7,3122.1,3.21251134]
[1768144039594,0.0011873,3122.7,3122.1,5.57335813]
[1768144039783,0.254,3123.4,3122.4,1.56292243]
[1768144041027,1.90759009,3123.4,3122.4,0.00080352]
[1768144041428,1.90759009,3123.4,3122.4,6.40613274]
[1768144041718,0.254,3123.4,3122.5,1.56211891]
[1768144041883,0.19093604,3123.3,3122.5,1.56211891]
[1768144042085,0.254,3123.4,3122.5,1.56211891]
[1768144043223,3.45567499,3123.4,3122.5,1.56211891]
[1768144043385,3.45567499,3123.4,3122.5,4.76462206]
[1768144043589,5.11278262,3123.4,3122.4,3.20345748]
[1768144043786,1.6908945,3123.3,3122.4,0.00080352]
[1768144044013,1.65885232,3123.1,3122.4,0.00080352]
[1768144046527,1.66223608,3122.9,3122.4,0.00080352]
[1768144046741,1.91423608,3122.9,3122.4,0.00080352]
[1768144048599,1.66556883,3122.7,3122.4,0.00080352]
[1768144048826,0.80700776,3122.6,3122.4,0.00080352]
[1768144051133,4.00948129,3122.6,3122.4,0.00080352]
[1768144051505,8.8839465,3122.6,3121.7,1.56211891]
[1768144051727,1.67199168,3122.4,3121.4,3.20367643]
[1768144051935,5.12665629,3122.4,3121.4,1.56211891]
[1768144052132,4.04803102,3122.4,3121.4,1.56211891]
[1768144054522,1.67661311,3122.3,3121.1,1.72713425]
[1768144054840,1.67661311,3122.3,3121.2,1.72613425]
[1768144055842,1.67661311,3122.3,3121.1,0.001]
[1768144056144,1.67964097,3122.1,3121.1,0.001]
[1768144056641,1.67964097,3121.9,3121.1,0.001]
[1768144056846,0.252,3121.8,3121.1,0.001]
[1768144057708,1.93458118,3121.8,3121.1,0.001]
[1768144058526,6.40676554,3121.7,3121.1,0.001]
[1768144058835,0.83413467,3121.6,3121.1,0.001]
[1768144060616,3.20358801,3121.5,3121.1,0.001]
[1768144061024,6.40717602,3121.5,3121.1,0.001]
[1768144061936,3.20358801,3121.5,3121.4,0.001]
[1768144062136,6.40717602,3121.5,3121.1,0.001]
[1768144062333,8.98840303,3121.5,3121.1,0.001]
[1768144062642,8.98840303,3121.5,3120.5,1.72613425]
[1768144063034,7.30013399,3121.5,3120.5,1.72613425]
[1768144063635,7.30013399,3121.5,3120.6,1.72613425]
[1768144063636,4.09654598,3121.5,3120.6,1.72613425]
[1768144064650,7.30013399,3121.5,3120.6,1.72613425]
[1768144066550,0.7300134,3121.4,3120.6,1.72613425]
[1768144066840,0.76205558,3121.4,3120.6,1.72613425]
[1768144067918,3.20379329,3121.3,3120.6,1.72613425]
[1768144071649,6.40758658,3121.3,3120.6,1.72613425]
[1768144073124,6.65958658,3121.3,3120.6,1.72613425]
[1768144073360,0.73896,3121.2,3120.6,1.72613425]
[1768144073636,0.73896,3121.2,3120.9,0.001]
[1768144074323,1.72867873,3121.1,3120.2,0.00082094]
[1768144074755,1.69663655,3121.1,3120.2,0.00082094]
[1768144074942,1.69663655,3120.9,3120.2,0.00082094]
[1768144075146,0.252,3120.8,3120.2,0.00082094]
[1768144075353,1.94863655,3120.8,3120.2,0.00082094]
[1768144075969,0.252,3120.8,3120.2,0.00082094]
[1768144077028,1.69663655,3120.7,3120.2,0.00082094]
[1768144077448,7.49648114,3120.8,3120.2,0.00082094]
[1768144077654,9.19311769,3120.8,3120.2,0.00082094]
[1768144080534,7.49648114,3120.8,3120.2,0.00082094]
[1768144081660,3.45639862,3120.8,3120.2,1.72695519]
[1768144084632,1.68071371,3121.2,3120.2,1.72695519]
[1768144084965,0.252,3121.1,3120.3,1.6919213]
[1768144085152,0.252,3121.0,3120.3,1.6919213]
[1768144085358,0.252,3121.0,3120.5,0.001]
[1768144085539,0.252,3121.0,3120.5,1.6929213]
[1768144086576,0.252,3121.0,3120.5,0.001]
[1768144087077,3.20420391,3120.9,3120.5,0.001]
[1768144087747,1.71275589,3120.8,3120.2,0.00082094]
[1768144087948,2.05837628,3120.8,3119.8,0.2491873]
[1768144088151,1.71073469,3120.6,3119.8,0.2491873]
[1768144088352,1.71073469,3120.6,3119.8,1.9843391]
[1768144089871,0.00082094,3120.6,3119.9,1.7351518]
[1768144090031,0.00082094,3120.6,3120.0,2.25411253]
[1768144094067,0.00082094,3120.6,3120.1,1.7351518]
[1768144094484,0.00082094,3120.6,3120.0,0.51896073]
[1768144094485,1.71073469,3120.6,3120.0,0.51896073]
[1768144094689,1.71073469,3120.6,3119.8,4.94042949]
[1768144096687,1.70991375,3120.5,3119.6,0.00080216]
[1768144096868,1.96191375,3120.5,3119.6,0.00080216]
[1768144097892,1.70991375,3120.3,3119.6,0.00080216]
[1768144098092,1.70991375,3120.3,3119.6,0.19959756]
[1768144098494,1.70991375,3120.3,3119.6,0.00080216]
[1768144098694,3.20478928,3120.4,3119.6,1.73595396]
[1768144099361,8.11948439,3120.4,3119.6,1.73595396]
[1768144099762,0.252,3120.5,3119.6,1.73595396]
[1768144099763,1.70991375,3120.3,3119.6,0.00080216]
[1768144099962,0.252,3120.4,3119.7,1.7351518]
[1768144100189,0.252,3120.4,3119.8,0.1735954]
[1768144100969,0.00282094,3120.6,3119.8,1.9087472]
[1768144101188,0.00282094,3120.6,3119.9,1.7672041]
[1768144102900,0.00282094,3120.6,3119.9,1.7351518]
[1768144103406,0.00282094,3120.6,3120.0,4.94028]
[1768144103572,0.00282094,3120.6,3120.0,1.7351518]
[1768144103902,0.00282094,3120.6,3120.0,2.22918496]
[1768144105392,0.00282094,3120.6,3120.0,5.43425786]
[1768144107373,0.00282094,3120.6,3120.0,5.43431133]
[1768144108398,0.00082094,3120.6,3120.0,5.43431133]
[1768144108606,0.00082094,3120.6,3120.2,0.00082176]
[1768144109503,0.002,3120.3,3120.2,0.00082176]
[1768144109698,0.002,3120.3,3120.2,0.54433507]
[1768144111208,0.00082094,3120.6,3120.2,0.54433507]
[1768144111403,0.00082094,3120.6,3120.2,0.00082176]
[1768144113988,4.92230605,3120.6,3120.2,0.00082176]
[1768144114189,1.71778951,3120.6,3120.2,0.00082176]
[1768144114688,1.71696857,3120.5,3120.2,0.00082176]
[1768144122213,1.71696857,3120.4,3119.7,2.07956922]
[1768144122411,1.71696857,3120.2,3119.6,0.00080216]
[1768144125903,1.71696857,3120.4,3119.6,1.82837138]
[1768144126107,0.252,3120.3,3119.6,1.82837138]
[1768144127519,0.252,3120.3,3119.7,5.03300564]
[1768144127816,0.252,3120.3,3119.8,0.82393154]
[1768144128015,0.0016427,3120.6,3119.9,1.82756922]
[1768144129319,1.71861127,3120.6,3119.9,1.82756922]
[1768144130816,1.71861127,3120.6,3119.9,5.0327728]
[1768144132007,1.71861127,3120.6,3119.9,1.82756922]
[1768144132227,1.71861127,3120.6,3119.9,5.93899619]
[1768144133024,1.71861127,3120.6,3120.2,0.001]
[1768144133227,0.002,3120.3,3120.2,0.001]
[1768144137405,0.0016427,3120.6,3120.2,0.001]
[1768144140901,0.0016427,3120.6,3120.2,1.82856922]
[1768144141113,0.0016427,3120.6,3120.3,0.18285692]
[1768144141526,0.0016427,3120.6,3120.2,0.001]
[1768144142232,1.71861127,3120.6,3120.2,0.001]
[1768144145210,0.0016427,3120.6,3120.2,0.001]
[1768144145444,0.002,3120.3,3120.2,0.001]
[1768144145734,1.76853677,3120.5,3120.2,0.001]
[1768144151017,0.0016427,3120.6,3120.2,0.001]
[1768144151721,0.0016427,3120.6,3120.2,1.99973748]
[1768144152440,0.0016427,3120.6,3120.3,1.84899136]
[1768144153018,0.002,3120.9,3120.5,1.81694316]
[1768144154724,0.002,3120.9,3120.4,3.20467558]
[1768144155442,0.002,3120.9,3120.5,3.20459733]
[1768144155745,0.002,3120.9,3120.5,4.027231]
[1768144157346,0.002,3120.6,3120.5,0.82263367]
[1768144157844,0.002,3120.6,3120.5,4.02724831]
[1768144158049,1.68316829,3120.9,3120.5,4.02724831]
[1768144158213,1.68316829,3120.9,3120.5,3.20461464]
[1768144159747,0.002,3120.9,3120.3,6.40964008]
[1768144159930,0.002,3120.9,3120.4,1.81694316]
[1768144160135,1.68116829,3121.1,3120.4,1.81694316]
[1768144160346,1.68116829,3121.5,3120.4,1.81694316]
[1768144160551,1.68116829,3121.5,3120.6,1.81694316]
[1768144160752,1.68116829,3121.5,3120.5,1.14314033]
[1768144161057,7.89686625,3121.6,3120.3,3.20482004]
[1768144161058,1.68116829,3121.2,3120.3,3.20482004]
[1768144162660,1.68116829,3121.1,3120.3,3.20482004]
[1768144163246,1.68116829,3121.1,3120.3,6.40964008]
[1768144163447,1.68116829,3121.1,3120.3,3.20482004]
[1768144163955,1.68116829,3121.1,3120.3,6.40964008]
[1768144164153,1.68116829,3121.1,3120.3,7.07598635]
[1768144164953,1.68116829,3121.1,3120.3,3.87116631]
[1768144165348,1.68116829,3121.1,3120.4,1.81694316]
[1768144167870,1.68116829,3121.1,3120.4,5.02160383]
[1768144169069,1.68116829,3121.1,3120.6,0.001]
[1768144172862,1.68116829,3120.9,3120.6,0.001]
[1768144188894,1.94848115,3121.1,3120.6,0.001]
[1768144189055,1.69648115,3120.8,3120.2,0.00182258]
[1768144191900,1.69648115,3120.8,3120.2,3.20674534]
[1768144192093,1.69648115,3120.8,3120.3,0.49258349]
[1768144193686,1.69648115,3121.0,3120.3,2.21167301]
[1768144196896,4.90061021,3121.0,3120.3,2.21167301]
[1768144197685,1.69648115,3121.0,3120.3,2.21167301]
[1768144198192,1.69648115,3121.0,3120.3,5.41648406]
[1768144198407,1.69648115,3121.0,3120.4,0.54183066]
[1768144199266,1.69648115,3121.0,3120.3,1.71908952]
[1768144200994,1.69648115,3121.0,3120.1,0.00961646]
[1768144200995,1.69648115,3120.5,3120.1,0.00961646]
[1768144201197,1.69730373,3120.6,3120.5,0.00961646]
[1768144201393,1.8670341,3120.6,3120.5,0.00961646]
[1768144201597,1.8670341,3120.6,3120.3,0.00961646]
[1768144203571,1.69648115,3120.5,3120.3,0.00961646]
[1768144207214,0.00082258,3120.6,3120.3,0.00961646]
[1768144207534,0.00082258,3120.6,3120.5,0.00961646]
[1768144207923,1.75020846,3120.6,3120.5,0.00961646]
[1768144208219,0.002,3120.7,3120.5,0.00961646]
[1768144209727,1.7136465,3121.0,3120.7,0.00961646]
[1768144210320,1.7116465,3120.9,3120.7,0.00961646]
[1768144210524,1.7116465,3120.9,3120.5,0.00961646]
[1768144210813,1.7116465,3120.9,3120.3,0.00961646]
[1768144210814,1.7116465,3120.8,3120.3,0.00961646]
[1768144212034,1.7116465,3120.8,3120.2,0.0008234]
[1768144212208,1.7116465,3120.8,3120.1,0.00961646]
[1768144212209,1.7116465,3120.6,3120.1,0.00961646]
[1768144212549,1.7124699,3120.6,3120.1,0.00961646]
[1768144213216,1.7124699,3120.6,3119.8,2.12112721]
[1768144213419,1.7124699,3120.6,3120.0,0.00961646]
[1768144213622,2.54979874,3120.6,3120.0,0.00961646]